fUSD/lending_fUSD_20241223
["ID","MTS","AMOUNT","RATE_DAILY","PERIOD"]
[346419923,1734954655776,-1574.74,0.00019178,2]
[346419924,1734954655785,-500.0,0.00019178,2]
[346419925,1734954655794,-2149.62,0.00019178,2]
[346419926,1734954655803,-974.38,0.00019178,2]
[346419927,1734954655813,-524.25685219,0.00019178,2]
[346419928,1734954655821,-1716.67,0.00019178,2]
[346419929,1734954655830,-1640.3,0.00019178,2]
[346419930,1734954655839,-412.45528463,0.00019178,2]
[346419931,1734954655848,-500.0,0.00019178,2]
[346419932,1734954655856,-34246.93,0.00019178,2]
[346419933,1734954655866,-500.0,0.00019178,2]
[346419934,1734954655875,-1704.96,0.00019178,2]
[346419935,1734954655884,-1519.05,0.00019178,2]
[346419936,1734954655893,-498.43623597,0.00019178,2]
[346419937,1734954655902,-500.0,0.00019178,2]
[346419938,1734954655911,-500.0,0.00019178,2]
[346419939,1734954655920,-500.0,0.00019178,2]
[346419940,1734954655929,-4000.0,0.00019178,2]
[346419941,1734954655938,-203.37,0.00019178,2]
[346419942,1734954655947,-767.17,0.00019178,2]
[346419943,1734954655956,-300.0,0.00019178,2]
[346419944,1734954655965,-150.0,0.0001918,2]
[346419945,1734954655974,-160.95674881,0.0001918,2]
[346419946,1734954655983,-160.95674881,0.0001918,2]
[346419947,1734954655991,-160.95674881,0.0001918,2]
[346419948,1734954656001,-160.95674881,0.0001918,2]
[346419949,1734954656014,-160.95674881,0.0001918,2]
[346419950,1734954656023,-160.95674881,0.0001918,2]
[346419951,1734954656032,-160.95674881,0.0001918,2]
[346419952,1734954656041,-160.95674881,0.0001918,2]
[346419953,1734954656051,-160.95674881,0.0001918,2]
[346419954,1734954656060,-160.95674881,0.0001918,2]
[346419955,1734954656069,-160.95674881,0.0001918,2]
[346419956,1734954656078,-160.95674881,0.0001918,2]
[346419957,1734954656087,-160.95,0.0001918,2]
[346419958,1734954656096,-150.0,0.00019189,2]
[346419959,1734954656105,-2000.0,0.0001919,2]
[346419960,1734954656114,-200.0,0.0001919,2]
[346419961,1734954656123,-2000.0,0.0001919,2]
[346419962,1734954656132,-200.0,0.0001919,2]
[346419963,1734954656142,-200.0,0.0001919,2]
[346419964,1734954656151,-2000.0,0.0001919,2]
[346419965,1734954656160,-200.0,0.0001919,2]
[346419966,1734954656169,-297.84197271,0.000192,90]
[346419967,1734954656178,-153.1327827,0.00019217,2]
[346419968,1734954656187,-150.0,0.00019228,2]
[346419969,1734954656197,-150.0,0.00019232,2]
[346419970,1734954656206,-152.07639963,0.00019233,2]
[346419971,1734954656215,-152.07639964,0.00019233,2]
[346419972,1734954656224,-150.0,0.00019238,2]
[346419973,1734954656233,-167.0,0.00019242,2]
[346419974,1734954656242,-150.0,0.00019245,2]
[346419975,1734954656251,-150.0,0.00019255,2]
[346419976,1734954656260,-231.21580398,0.0001926,2]
[346419977,1734954656269,-304.15279927,0.0001926,2]
[346419978,1734954656278,-202.76853285,0.0001926,2]
[346419979,1734954656287,-304.15279928,0.0001926,2]
[346419980,1734954656296,-202.76853285,0.0001926,2]
[346419981,1734954656305,-150.0,0.00019272,2]
[346419982,1734954656314,-1052.34,0.00019273,2]
[346419983,1734954656324,-150.0,0.00019277,2]
[346419984,1734954656333,-150.0,0.00019277,2]
[346419985,1734954656342,-150.0,0.00019278,2]
[346419986,1734954656351,-150.0,0.00019284,2]
[346419987,1734954656360,-164.87154374,0.00019288,2]
[346419988,1734954656369,-150.0,0.00019289,2]
[346419989,1734954656378,-1500.0,0.00019292,2]
[346419990,1734954656387,-500.0,0.00019295,2]
[346419991,1734954656396,-500.0,0.00019296,2]
[346419992,1734954656405,-500.0,0.00019296,2]
[346419993,1734954656414,-500.0,0.00019296,2]
[346419994,1734954656423,-500.0,0.00019296,2]
[346419995,1734954656431,-2000.0,0.00019296,2]
[346419996,1734954656440,-500.0,0.00019296,2]
[346419997,1734954656449,-500.0,0.00019296,2]
[346419998,1734954656458,-500.0,0.00019296,2]
[346419999,1734954656467,-500.0,0.00019296,2]
[346420000,1734954656476,-500.0,0.00019296,2]
[346420001,1734954656485,-200.0,0.00019296,2]
[346420002,1734954656494,-151.0,0.00019299,2]
[346420003,1734954656503,-152.00346,0.00019299,2]
[346420004,1734954656512,-152.00346,0.00019299,2]
[346420005,1734954656521,-300.0,0.00019299,2]
[346420006,1734954656530,-666.0,0.00019299,2]
[346420007,1734954656539,-582045.8997,0.000193,2]
[346420008,1734954656547,-151.0,0.000193,2]
[346420009,1734954656556,-151.0,0.000193,2]
[346420010,1734954656565,-151.0,0.000193,2]
[346420011,1734954656574,-151.0,0.000193,2]
[346420012,1734954656583,-151.0,0.000193,2]
[346420013,1734954656592,-195.899965,0.000193,2]
[346420014,1734954656601,-195.899965,0.000193,2]
[346420015,1734954656610,-161.556979,0.000193,2]
[346420016,1734954656619,-151.0,0.000193,2]
[346420017,1734954656628,-153.0,0.00019302,2]
[346420018,1734954656637,-153.0,0.00019302,2]
[346420019,1734954656645,-153.0,0.00019303,2]
[346420020,1734954656654,-153.0,0.00019303,2]
[346420021,1734954656663,-153.0,0.00019303,2]
[346420022,1734954656671,-153.0,0.00019303,2]
[346420023,1734954656680,-153.0,0.00019304,2]
[346420024,1734954656689,-153.0,0.00019304,2]
[346420025,1734954656698,-153.0,0.00019309,2]
[346420026,1734954656707,-153.0,0.00019309,2]
[346420027,1734954656716,-150.0,0.00019311,2]
[346420028,1734954656725,-156.20196411,0.00019314,2]
[346420029,1734954656734,-150.0,0.00019319,2]
[346420030,1734954656742,-150.0,0.00019319,2]
[346420031,1734954656751,-150.0,0.00019322,2]
[346420032,1734954656760,-150.0,0.00019328,2]
[346420033,1734954656769,-10281.34,0.00019339,2]
[346420034,1734954656778,-172.617837,0.00019341,2]
[346420035,1734954656787,-172.617837,0.00019341,2]
[346420036,1734954656795,-182.482872,0.00019341,2]
[346420037,1734954656804,-231.21580398,0.00019342,2]
[346420038,1734954656813,-304.15279927,0.00019342,2]
[346420039,1734954656822,-202.76853285,0.00019342,2]
[346420040,1734954656833,-304.15279928,0.00019342,2]
[346420041,1734954656842,-202.76853285,0.00019342,2]
[346420042,1734954656851,-150.0,0.00019343,2]
[346420043,1734954656859,-500.0,0.00019355,2]
[346420044,1734954656868,-500.0,0.00019355,2]
[346420045,1734954656877,-500.0,0.00019355,2]
[346420046,1734954656885,-500.0,0.00019355,2]
[346420047,1734954656895,-500.0,0.00019355,2]
[346420048,1734954656904,-439.2466,0.00019355,2]
[346420049,1734954656913,-1000.0,0.00019355,2]
[346420050,1734954656922,-1000.0,0.00019355,2]
[346420051,1734954656931,-1000.0,0.00019355,2]
[346420052,1734954656940,-1000.0,0.00019355,2]
[346420053,1734954656949,-1000.0,0.00019355,2]
[346420054,1734954656957,-1000.0,0.00019355,2]
[346420055,1734954656966,-1000.0,0.00019355,2]
[346420056,1734954656976,-1000.0,0.00019355,2]
[346420057,1734954656985,-1000.0,0.00019355,2]
[346420058,1734954656996,-1000.0,0.00019355,2]
[346420059,1734954657005,-1000.0,0.00019355,2]
[346420060,1734954657016,-1000.0,0.00019355,2]
[346420061,1734954657025,-1000.0,0.00019355,2]
[346420062,1734954657034,-1000.0,0.00019355,2]
[346420063,1734954657043,-1000.0,0.00019355,2]
[346420064,1734954657052,-1000.0,0.00019355,2]
[346420065,1734954657061,-1000.0,0.00019355,2]
[346420066,1734954657070,-1000.0,0.00019355,2]
[346420067,1734954657079,-1000.0,0.00019355,2]
[346420068,1734954657089,-1000.0,0.00019355,2]
[346420069,1734954657098,-1000.0,0.00019355,2]
[346420070,1734954657107,-1000.0,0.00019355,2]
[346420071,1734954657115,-1000.0,0.00019355,2]
[346420072,1734954657124,-1000.0,0.00019355,2]
[346420073,1734954657134,-1000.0,0.00019355,2]
[346420074,1734954657142,-1000.0,0.00019355,2]
[346420075,1734954657151,-1000.0,0.00019355,2]
[346420076,1734954657160,-1000.0,0.00019355,2]
[346420077,1734954657169,-1000.0,0.00019355,2]
[346420078,1734954657178,-1000.0,0.00019355,2]
[346420079,1734954657187,-1000.0,0.00019355,2]
[346420080,1734954657195,-1000.0,0.00019355,2]
[346420081,1734954657204,-1000.0,0.00019355,2]
[346420082,1734954657213,-1000.0,0.00019355,2]
[346420083,1734954657222,-1000.0,0.00019355,2]
[346420084,1734954657233,-1000.0,0.00019355,2]
[346420085,1734954657242,-1000.0,0.00019355,2]
[346420086,1734954657251,-1000.0,0.00019355,2]
[346420087,1734954657260,-1000.0,0.00019355,2]
[346420088,1734954657269,-1000.0,0.00019355,2]
[346420089,1734954657277,-1000.0,0.00019355,2]
[346420090,1734954657287,-1000.0,0.00019355,2]
[346420091,1734954657295,-912.9907,0.00019355,2]
[346420092,1734954657304,-1500.0,0.00019355,2]
[346420093,1734954657313,-1500.0,0.00019357,2]
[346420094,1734954657322,-152.07639963,0.0001937,2]
[346420095,1734954657331,-152.07639964,0.0001937,2]
[346420096,1734954657340,-150.0,0.00019374,2]
[346420097,1734954657350,-150.0,0.00019374,2]
[346420098,1734954657359,-150.0,0.00019376,2]
[346420099,1734954657368,-1500.0,0.00019377,2]
[346420100,1734954657377,-200.0,0.00019382,2]
[346420101,1734954657386,-2000.0,0.00019382,2]
[346420102,1734954657396,-200.0,0.00019382,2]
[346420103,1734954657405,-200.0,0.00019382,2]
[346420104,1734954657414,-2000.0,0.00019382,2]
[346420105,1734954657423,-200.0,0.00019382,2]
[346420106,1734954657432,-150.0,0.00019383,2]
[346420107,1734954657441,-150.0,0.00019387,2]
[346420108,1734954657450,-150.0,0.00019388,2]
[346420109,1734954657459,-150.0,0.00019391,2]
[346420110,1734954657469,-150.0,0.00019394,2]
[346420111,1734954657478,-167.0,0.00019397,2]
[346420112,1734954657487,-201.0,0.00019397,2]
[346420113,1734954657496,-201.0,0.00019397,2]
[346420114,1734954657505,-157.0,0.00019397,2]
[346420115,1734954657514,-157.0,0.00019397,2]
[346420116,1734954657523,-157.0,0.00019397,2]
[346420117,1734954657532,-157.0,0.00019397,2]
[346420118,1734954657541,-157.0,0.00019397,2]
[346420119,1734954657549,-157.0,0.00019397,2]
[346420120,1734954657558,-157.0,0.00019397,2]
[346420121,1734954657568,-157.0,0.00019397,2]
[346420122,1734954657577,-157.0,0.00019397,2]
[346420123,1734954657586,-157.0,0.00019397,2]
[346420124,1734954657595,-157.0,0.00019397,2]
[346420125,1734954657603,-157.0,0.00019397,2]
[346420126,1734954657612,-157.0,0.00019397,2]
[346420127,1734954657621,-157.0,0.00019397,2]
[346420128,1734954657630,-157.0,0.00019397,2]
[346420129,1734954657639,-157.0,0.00019397,2]
[346420130,1734954657648,-157.0,0.00019397,2]
[346420131,1734954657657,-157.0,0.00019397,2]
[346420132,1734954657666,-157.0,0.00019397,2]
[346420133,1734954657675,-161.91,0.00019397,2]
[346420134,1734954657683,-75258.18604416,0.00019398,2]
[346420135,1734954657692,-365.0,0.000194,2]
[346420136,1734954657701,-1000.0,0.000194,2]
[346420137,1734954657710,-230.0,0.000194,2]
[346420138,1734954657718,-973.8,0.000194,2]
[346420139,1734954657728,-1500.0,0.00019401,2]
[346420140,1734954657737,-1052.34,0.0001941,2]
[346420141,1734954657746,-1500.0,0.00019414,2]
[346420142,1734954657754,-150.0,0.00019423,2]
[346420143,1734954657763,-231.21580398,0.00019425,2]
[346420144,1734954657772,-304.15279927,0.00019425,2]
[346420145,1734954657781,-202.76853285,0.00019425,2]
[346420146,1734954657790,-304.15279928,0.00019425,2]
[346420147,1734954657798,-202.76853285,0.00019425,2]
[346420148,1734954657807,-845.86816061,0.00019442,2]
[346420149,1734954657817,-6257.967,0.00019445,2]
[346420150,1734954657826,-285.888,0.00019445,2]
[346420151,1734954657835,-250.0,0.00019445,2]
[346420152,1734954657844,-201.0,0.00019445,2]
[346420153,1734954657853,-154.0,0.00019445,2]
[346420154,1734954657862,-154.0,0.00019445,2]
[346420155,1734954657871,-154.0,0.00019445,2]
[346420156,1734954657880,-154.0,0.00019445,2]
[346420157,1734954657888,-154.0,0.00019445,2]
[346420158,1734954657897,-154.0,0.00019445,2]
[346420159,1734954657906,-154.0,0.00019445,2]
[346420160,1734954657915,-154.0,0.00019445,2]
[346420161,1734954657924,-154.0,0.00019445,2]
[346420162,1734954657933,-154.0,0.00019445,2]
[346420163,1734954657943,-154.0,0.00019445,2]
[346420164,1734954657952,-154.0,0.00019445,2]
[346420165,1734954657961,-154.0,0.00019445,2]
[346420166,1734954657970,-150.944,0.00019451,2]
[346420167,1734954657980,-2011.0,0.00019451,2]
[346420168,1734954657989,-1285.637,0.00019451,2]
[346420169,1734954657998,-212.073,0.00019451,2]
[346420170,1734954658010,-256.164,0.00019451,2]
[346420171,1734954658020,-586.384,0.00019451,2]
[346420172,1734954658029,-633.0,0.00019451,2]
[346420173,1734954658038,-1899.0,0.00019451,2]
[346420174,1734954658049,-818.0,0.00019451,2]
[346420175,1734954658058,-1052.309,0.00019451,2]
[346420176,1734954658067,-3770.0,0.00019451,2]
[346420177,1734954658076,-1256.0,0.00019451,2]
[346420178,1734954658088,-548.12,0.00019451,2]
[346420179,1734954658097,-3682.0,0.00019451,2]
[346420180,1734954658106,-250.0,0.00019451,2]
[346420181,1734954658115,-3887.0,0.00019451,2]
[346420182,1734954658124,-150.0,0.00019451,2]
[346420183,1734954658133,-293.681,0.00019451,2]
[346420184,1734954658142,-155.477,0.00019451,2]
[346420185,1734954658151,-9592.0,0.00019451,2]
[346420186,1734954658160,-1170.0,0.00019451,2]
[346420187,1734954658169,-500.0,0.00019451,2]
[346420188,1734954658178,-500.0,0.00019451,2]
[346420189,1734954658187,-500.0,0.00019451,2]
[346420190,1734954658196,-500.0,0.00019451,2]
[346420191,1734954658206,-500.0,0.00019451,2]
[346420192,1734954658215,-500.0,0.00019451,2]
[346420193,1734954658224,-500.0,0.00019451,2]
[346420194,1734954658233,-500.0,0.00019451,2]
[346420195,1734954658242,-500.0,0.00019451,2]
[346420196,1734954658251,-174.08,0.00019451,2]
[346420197,1734954658260,-300.0,0.00019451,2]
[346420198,1734954658269,-666.0,0.00019451,2]
[346420199,1734954658279,-1000.0,0.00019452,2]
[346420200,1734954658287,-1000.0,0.00019452,2]
[346420201,1734954658297,-1000.0,0.00019452,2]
[346420202,1734954658306,-1000.0,0.00019452,2]
[346420203,1734954658315,-1000.0,0.00019452,2]
[346420204,1734954658323,-1000.0,0.00019452,2]
[346420205,1734954658333,-1000.0,0.00019452,2]
[346420206,1734954658342,-1000.0,0.00019452,2]
[346420207,1734954658351,-1000.0,0.00019452,2]
[346420208,1734954658360,-1000.0,0.00019452,2]
[346420209,1734954658369,-1000.0,0.00019452,2]
[346420210,1734954658378,-1000.0,0.00019452,2]
[346420211,1734954658387,-1000.0,0.00019452,2]
[346420212,1734954658396,-1000.0,0.00019452,2]
[346420213,1734954658405,-1000.0,0.00019452,2]
[346420214,1734954658414,-1000.0,0.00019452,2]
[346420215,1734954658424,-1000.0,0.00019452,2]
[346420216,1734954658433,-1000.0,0.00019452,2]
[346420217,1734954658443,-1000.0,0.00019452,2]
[346420218,1734954658452,-1000.0,0.00019452,2]
[346420219,1734954658461,-1000.0,0.00019452,2]
[346420220,1734954658470,-1000.0,0.00019452,2]
[346420221,1734954658480,-1000.0,0.00019452,2]
[346420222,1734954658490,-1000.0,0.00019452,2]
[346420223,1734954658499,-1000.0,0.00019452,2]
[346420224,1734954658508,-1000.0,0.00019452,2]
[346420225,1734954658518,-1000.0,0.00019452,2]
[346420226,1734954658527,-1000.0,0.00019452,2]
[346420227,1734954658536,-1000.0,0.00019452,2]
[346420228,1734954658545,-1000.0,0.00019452,2]
[346420229,1734954658555,-1000.0,0.00019452,2]
[346420230,1734954658563,-1000.0,0.00019452,2]
[346420231,1734954658573,-1000.0,0.00019452,2]
[346420232,1734954658582,-220.30642425,0.00019452,2]
[346420233,1734954658591,-151.0,0.00019452,2]
[346420234,1734954658713,-151.0,0.00019452,2]
[346420235,1734954658723,-206.699624,0.00019452,2]
[346420236,1734954658732,-151.0,0.00019452,2]
[346420237,1734954658741,-151.0,0.00019452,2]
[346420238,1734954658751,-151.0,0.00019452,2]
[346420239,1734954658760,-151.0,0.00019452,2]
[346420240,1734954658769,-152.00346,0.00019452,2]
[346420241,1734954658779,-152.00346,0.00019452,2]
[346420242,1734954658788,-152.00346,0.00019452,2]
[346420243,1734954658797,-152.00346,0.00019452,2]
[346420244,1734954658806,-500.0,0.00019452,2]
[346420245,1734954658816,-500.0,0.00019452,2]
[346420246,1734954658825,-178.76072853,0.00019452,2]
[346420247,1734954658834,-500.0,0.00019452,2]
[346420248,1734954658844,-500.0,0.00019452,2]
[346420249,1734954658854,-501.58570271,0.00019452,2]
[346420250,1734954658863,-500.0,0.00019452,2]
[346420251,1734954658872,-500.0,0.00019452,2]
[346420252,1734954658881,-500.0,0.00019452,2]
[346420253,1734954658890,-500.0,0.00019452,2]
[346420254,1734954658899,-500.0,0.00019452,2]
[346420255,1734954658912,-500.0,0.00019452,2]
[346420256,1734954658921,-151.0,0.00019452,2]
[346420257,1734954658930,-151.0,0.00019452,2]
[346420258,1734954658939,-500.0,0.00019452,2]
[346420259,1734954658949,-195.899965,0.00019452,2]
[346420260,1734954658958,-195.899965,0.00019452,2]
[346420261,1734954658967,-195.899965,0.00019452,2]
[346420262,1734954658977,-195.899965,0.00019452,2]
[346420263,1734954658986,-500.0,0.00019452,2]
[346420264,1734954658995,-569.86,0.00019452,2]
[346420265,1734954659006,-150.0,0.00019452,2]
[346420266,1734954659016,-151.0,0.00019452,2]
[346420267,1734954659025,-151.0,0.00019452,2]
[346420268,1734954659034,-505.05914017,0.00019452,2]
[346420269,1734954659043,-500.0,0.00019452,2]
[346420270,1734954659054,-200.80855242,0.00019452,2]
[346420271,1734954659063,-500.0,0.00019452,2]
[346420272,1734954659072,-5000.0,0.00019452,2]
[346420273,1734954659081,-957.85,0.00019452,2]
[346420274,1734954659091,-500.0,0.00019452,2]
[346420275,1734954659101,-500.0,0.00019452,2]
[346420276,1734954659110,-500.0,0.00019452,2]
[346420277,1734954659119,-500.0,0.00019452,2]
[346420278,1734954659128,-500.0,0.00019452,2]
[346420279,1734954659137,-500.0,0.00019452,2]
[346420280,1734954659147,-500.0,0.00019452,2]
[346420281,1734954659156,-500.0,0.00019452,2]
[346420282,1734954659165,-971.31,0.00019452,2]
[346420283,1734954659174,-500.0,0.00019452,2]
[346420284,1734954659183,-500.0,0.00019452,2]
[346420285,1734954659192,-747.84,0.00019452,2]
[346420286,1734954659202,-500.0,0.00019452,2]
[346420287,1734954659211,-500.0,0.00019452,2]
[346420288,1734954659220,-500.0,0.00019452,2]
[346420289,1734954659231,-500.0,0.00019452,2]
[346420290,1734954659241,-500.0,0.00019452,2]
[346420291,1734954659250,-1103.1,0.00019452,2]
[346420292,1734954659260,-500.0,0.00019452,2]
[346420293,1734954659269,-500.0,0.00019452,2]
[346420294,1734954659278,-500.0,0.00019452,2]
[346420295,1734954659287,-578.42,0.00019452,2]
[346420296,1734954659298,-1058.94,0.00019452,2]
[346420297,1734954659307,-500.0,0.00019452,2]
[346420298,1734954659316,-500.0,0.00019452,2]
[346420299,1734954659325,-500.0,0.00019452,2]
[346420300,1734954659335,-500.0,0.00019452,2]
[346420301,1734954659344,-500.0,0.00019452,2]
[346420302,1734954659353,-500.0,0.00019452,2]
[346420303,1734954659363,-500.0,0.00019452,2]
[346420304,1734954659372,-887.42,0.00019452,2]
[346420305,1734954659381,-500.0,0.00019452,2]
[346420306,1734954659390,-515.51,0.00019452,2]
[346420307,1734954659399,-500.0,0.00019452,2]
[346420308,1734954659408,-500.0,0.00019452,2]
[346420309,1734954659418,-500.0,0.00019452,2]
[346420310,1734954659428,-500.0,0.00019452,2]
[346420311,1734954659437,-500.0,0.00019452,2]
[346420312,1734954659446,-500.0,0.00019452,2]
[346420313,1734954659456,-500.0,0.00019452,2]
[346420314,1734954659465,-500.0,0.00019452,2]
[346420315,1734954659476,-500.0,0.00019452,2]
[346420316,1734954659485,-179.29503894,0.00019452,2]
[346420317,1734954659495,-1284.56,0.00019452,2]
[346420318,1734954659504,-757.51,0.00019452,2]
[346420319,1734954659513,-500.0,0.00019452,2]
[346420320,1734954659522,-500.0,0.00019452,2]
[346420321,1734954659531,-500.0,0.00019452,2]
[346420322,1734954659540,-500.0,0.00019452,2]
[346420323,1734954659549,-500.0,0.00019452,2]
[346420324,1734954659558,-500.0,0.00019452,2]
[346420325,1734954659567,-500.0,0.00019452,2]
[346420326,1734954659577,-500.0,0.00019452,2]
[346420327,1734954659587,-500.0,0.00019452,2]
[346420328,1734954659596,-500.0,0.00019452,2]
[346420329,1734954659605,-500.0,0.00019452,2]
[346420330,1734954659615,-500.0,0.00019452,2]
[346420331,1734954659625,-500.0,0.00019452,2]
[346420332,1734954659635,-500.0,0.00019452,2]
[346420333,1734954659644,-500.0,0.00019452,2]
[346420334,1734954659653,-500.0,0.00019452,2]
[346420335,1734954659662,-500.0,0.00019452,2]
[346420336,1734954659671,-500.0,0.00019452,2]
[346420337,1734954659680,-500.0,0.00019452,2]
[346420338,1734954659689,-500.0,0.00019452,2]
[346420339,1734954659698,-500.0,0.00019452,2]
[346420340,1734954659707,-500.0,0.00019452,2]
[346420341,1734954659716,-500.0,0.00019452,2]
[346420342,1734954659726,-500.0,0.00019452,2]
[346420343,1734954659735,-712.78,0.00019452,2]
[346420344,1734954659744,-500.0,0.00019452,2]
[346420345,1734954659753,-500.0,0.00019452,2]
[346420346,1734954659762,-500.0,0.00019452,2]
[346420347,1734954659772,-500.0,0.00019452,2]
[346420348,1734954659781,-500.0,0.00019452,2]
[346420349,1734954659790,-500.0,0.00019452,2]
[346420350,1734954659799,-587.44,0.00019452,2]
[346420351,1734954659808,-500.0,0.00019452,2]
[346420352,1734954659817,-500.0,0.00019452,2]
[346420353,1734954659827,-500.0,0.00019452,2]
[346420354,1734954659836,-500.0,0.00019452,2]
[346420355,1734954659845,-500.0,0.00019452,2]
[346420356,1734954659855,-500.0,0.00019452,2]
[346420357,1734954659864,-611.7,0.00019452,2]
[346420358,1734954659873,-874.49,0.00019452,2]
[346420359,1734954659882,-500.0,0.00019452,2]
[346420360,1734954659891,-500.0,0.00019452,2]
[346420361,1734954659901,-500.0,0.00019452,2]
[346420362,1734954659910,-644.23,0.00019452,2]
[346420363,1734954659919,-1366.88,0.00019452,2]
[346420364,1734954659928,-500.0,0.00019452,2]
[346420365,1734954659937,-500.0,0.00019452,2]
[346420366,1734954659947,-500.0,0.00019452,2]
[346420367,1734954659956,-500.0,0.00019452,2]
[346420368,1734954659965,-500.0,0.00019452,2]
[346420369,1734954659976,-500.0,0.00019452,2]
[346420370,1734954659986,-572.32,0.00019452,2]
[346420371,1734954659995,-500.0,0.00019452,2]
[346420372,1734954660005,-921.58,0.00019452,2]
[346420373,1734954660017,-500.0,0.00019452,2]
[346420374,1734954660027,-500.0,0.00019452,2]
[346420375,1734954660036,-681.8,0.00019452,2]
[346420376,1734954660047,-500.0,0.00019452,2]
[346420377,1734954660056,-724.85,0.00019452,2]
[346420378,1734954660066,-500.0,0.00019452,2]
[346420379,1734954660075,-780.56,0.00019452,2]
[346420380,1734954660085,-1387.19,0.00019452,2]
[346420381,1734954660095,-500.0,0.00019452,2]
[346420382,1734954660104,-505.15745986,0.00019452,2]
[346420383,1734954660114,-500.0,0.00019452,2]
[346420384,1734954660123,-615.92,0.00019452,2]
[346420385,1734954660132,-500.0,0.00019452,2]
[346420386,1734954660142,-500.0,0.00019452,2]
[346420387,1734954660151,-500.0,0.00019452,2]
[346420388,1734954660161,-500.0,0.00019452,2]
[346420389,1734954660171,-612.79,0.00019452,2]
[346420390,1734954660180,-845.85,0.00019452,2]
[346420391,1734954660190,-500.0,0.00019452,2]
[346420392,1734954660200,-500.0,0.00019452,2]
[346420393,1734954660210,-781.0,0.00019452,2]
[346420394,1734954660220,-500.0,0.00019452,2]
[346420395,1734954660231,-1397.77,0.00019452,2]
[346420396,1734954660242,-1333.95,0.00019452,2]
[346420397,1734954660252,-500.0,0.00019452,2]
[346420398,1734954660262,-500.0,0.00019452,2]
[346420399,1734954660273,-500.0,0.00019452,2]
[346420400,1734954660283,-505.1,0.00019452,2]
[346420401,1734954660292,-500.0,0.00019452,2]
[346420402,1734954660302,-500.0,0.00019452,2]
[346420403,1734954660311,-653.13,0.00019452,2]
[346420404,1734954660320,-500.0,0.00019452,2]
[346420405,1734954660330,-577.79,0.00019452,2]
[346420406,1734954660339,-512.96,0.00019452,2]
[346420407,1734954660348,-500.0,0.00019452,2]
[346420408,1734954660357,-500.0,0.00019452,2]
[346420409,1734954660367,-500.0,0.00019452,2]
[346420410,1734954660376,-1242.25,0.00019452,2]
[346420411,1734954660386,-500.0,0.00019452,2]
[346420412,1734954660395,-500.0,0.00019452,2]
[346420413,1734954660404,-500.0,0.00019452,2]
[346420414,1734954660413,-500.0,0.00019452,2]
[346420415,1734954660423,-500.0,0.00019452,2]
[346420416,1734954660432,-500.0,0.00019452,2]
[346420417,1734954660441,-218.46026678,0.00019452,2]
[346420418,1734954660451,-200.0,0.00019452,2]
[346420419,1734954660460,-500.0,0.00019452,2]
[346420420,1734954660470,-500.0,0.00019452,2]
[346420421,1734954660481,-439.00600571,0.00019452,2]
[346420422,1734954660491,-530.15,0.00019452,2]